fUSD/lending_fUSD_20240625
["ID","MTS","AMOUNT","RATE_DAILY","PERIOD"]
[330413341,1719354643358,-420.2170663,0.00019452,2]
[330413342,1719354643368,-500.0,0.00019452,2]
[330413343,1719354643379,-630.91,0.00019452,2]
[330413344,1719354643388,-552.49,0.00019452,2]
[330413345,1719354643397,-500.0,0.00019452,2]
[330413346,1719354643408,-500.0,0.00019452,2]
[330413347,1719354643417,-699.0,0.00019452,2]
[330413348,1719354643429,-500.0,0.00019452,2]
[330413349,1719354643439,-500.0,0.00019452,2]
[330413350,1719354643449,-832.63,0.00019452,2]
[330413351,1719354643459,-500.0,0.00019452,2]
[330413352,1719354643468,-667.38,0.00019452,2]
[330413353,1719354643477,-500.0,0.00019452,2]
[330413354,1719354643487,-500.0,0.00019452,2]
[330413355,1719354643496,-500.0,0.00019452,2]
[330413356,1719354643507,-500.0,0.00019452,2]
[330413357,1719354643516,-500.0,0.00019452,2]
[330413358,1719354643527,-500.0,0.00019452,2]
[330413359,1719354643536,-904.74,0.00019452,2]
[330413360,1719354643545,-1980.36,0.00019452,2]
[330413361,1719354643554,-932.71,0.00019452,2]
[330413362,1719354643563,-500.0,0.00019452,2]
[330413363,1719354643572,-500.0,0.00019452,2]
[330413364,1719354643581,-500.0,0.00019452,2]
[330413365,1719354643591,-500.0,0.00019452,2]
[330413367,1719354643659,-500.0,0.00019452,2]
[330413369,1719354643668,-804.77,0.00019452,2]
[330413371,1719354643677,-500.0,0.00019452,2]
[330413373,1719354643688,-500.0,0.00019452,2]
[330413375,1719354643697,-500.0,0.00019452,2]
[330413377,1719354643706,-500.0,0.00019452,2]
[330413379,1719354643715,-633.57,0.00019452,2]
[330413381,1719354643725,-718.77,0.00019452,2]
[330413382,1719354643734,-857.64,0.00019452,2]
[330413385,1719354643745,-787.53,0.00019452,2]
[330413387,1719354643755,-1040.76,0.00019452,2]
[330413389,1719354643764,-500.0,0.00019452,2]
[330413391,1719354643773,-500.0,0.00019452,2]
[330413393,1719354643783,-500.0,0.00019452,2]
[330413395,1719354643792,-1075.47,0.00019452,2]
[330413397,1719354643802,-14241.1,0.00019452,2]
[330413398,1719354643811,-500.0,0.00019452,2]
[330413400,1719354643821,-500.0,0.00019452,2]
[330413402,1719354643831,-564.0,0.00019452,2]
[330413403,1719354643841,-503.64,0.00019452,2]
[330413404,1719354643853,-672.44,0.00019452,2]
[330413405,1719354643862,-572.49797818,0.00019452,2]
[330413406,1719354643871,-500.0,0.00019452,2]
[330413407,1719354643880,-553.48147642,0.00019452,2]
[330413408,1719354643889,-895.35,0.00019452,2]
[330413409,1719354643898,-500.0,0.00019452,2]
[330413410,1719354643907,-500.0,0.00019452,2]
[330413411,1719354643916,-500.0,0.00019452,2]
[330413412,1719354643925,-500.0,0.00019452,2]
[330413414,1719354643934,-567.91,0.00019452,2]
[330413415,1719354643943,-500.0,0.00019452,2]
[330413416,1719354643952,-500.0,0.00019452,2]
[330413417,1719354643961,-921.81,0.00019452,2]
[330413418,1719354643970,-500.0,0.00019452,2]
[330413419,1719354643980,-781.14,0.00019452,2]
[330413420,1719354643989,-662.24,0.00019452,2]
[330413421,1719354643998,-500.0,0.00019452,2]
[330413422,1719354644008,-801.2,0.00019452,2]
[330413423,1719354644018,-212.69433397,0.00019452,2]
[330413424,1719354644027,-500.0,0.00019452,2]
[330413425,1719354644036,-976.51,0.00019452,2]
[330413426,1719354644046,-516.17,0.00019452,2]
[330413427,1719354644056,-500.0,0.00019452,2]
[330413428,1719354644066,-500.0,0.00019452,2]
[330413429,1719354644075,-670.72,0.00019452,2]
[330413430,1719354644085,-500.0,0.00019452,2]
[330413431,1719354644094,-1350.56,0.00019452,2]
[330413432,1719354644103,-500.0,0.00019452,2]
[330413433,1719354644121,-500.0,0.00019452,2]
[330413434,1719354644130,-635.08,0.00019452,2]
[330413435,1719354644139,-500.0,0.00019452,2]
[330413436,1719354644148,-500.0,0.00019452,2]
[330413437,1719354644158,-500.0,0.00019452,2]
[330413438,1719354644167,-849.6,0.00019452,2]
[330413439,1719354644176,-1215.97,0.00019452,2]
[330413440,1719354644185,-500.0,0.00019452,2]
[330413441,1719354644195,-1087.05,0.00019452,2]
[330413442,1719354644205,-500.0,0.00019452,2]
[330413443,1719354644215,-500.0,0.00019452,2]
[330413444,1719354644224,-1410.03,0.00019452,2]
[330413445,1719354644234,-972.58,0.00019452,2]
[330413446,1719354644244,-500.0,0.00019452,2]
[330413447,1719354644255,-1499.71,0.00019452,2]
[330413448,1719354644264,-564.84568547,0.00019452,2]
[330413449,1719354644273,-500.0,0.00019452,2]
[330413450,1719354644282,-500.0,0.00019452,2]
[330413451,1719354644292,-500.0,0.00019452,2]
[330413452,1719354644301,-500.0,0.00019452,2]
[330413453,1719354644310,-500.0,0.00019452,2]
[330413454,1719354644320,-665.79,0.00019452,2]
[330413455,1719354644330,-500.0,0.00019452,2]
[330413456,1719354644339,-500.0,0.00019452,2]
[330413457,1719354644348,-542.17,0.00019452,2]
[330413458,1719354644357,-766.84,0.00019452,2]
[330413459,1719354644366,-500.0,0.00019452,2]
[330413460,1719354644376,-911.87,0.00019452,2]
[330413461,1719354644386,-500.0,0.00019452,2]
[330413462,1719354644396,-500.0,0.00019452,2]
[330413463,1719354644405,-1422.48,0.00019452,2]
[330413464,1719354644414,-1195.75,0.00019452,2]
[330413465,1719354644425,-500.0,0.00019452,2]
[330413466,1719354644435,-500.0,0.00019452,2]
[330413467,1719354644445,-500.0,0.00019452,2]
[330413468,1719354644455,-553.83,0.00019452,2]
[330413469,1719354644464,-1677.33,0.00019452,2]
[330413470,1719354644473,-687.89,0.00019452,2]
[330413471,1719354644482,-500.0,0.00019452,2]
[330413472,1719354644491,-500.0,0.00019452,2]
[330413473,1719354644502,-12592.27,0.00019452,2]
[330413474,1719354644512,-500.0,0.00019452,2]
[330413475,1719354644522,-1129.63,0.00019452,2]
[330413476,1719354644531,-500.0,0.00019452,2]
[330413477,1719354644541,-635.21,0.00019452,2]
[330413478,1719354644550,-959.34,0.00019452,2]
[330413479,1719354644559,-947.27,0.00019452,2]
[330413480,1719354644568,-17826.68,0.00019452,2]
[330413481,1719354644578,-260.05316893,0.00019452,2]
[330413482,1719354644587,-500.0,0.00019452,2]
[330413483,1719354644596,-1092.73,0.00019452,2]
[330413484,1719354644607,-500.0,0.00019452,2]
[330413485,1719354644619,-500.0,0.00019452,2]
[330413486,1719354644628,-946.96,0.00019452,2]
[330413487,1719354644637,-500.0,0.00019452,2]
[330413488,1719354644647,-500.0,0.00019452,2]
[330413489,1719354644657,-565.09,0.00019452,2]
[330413490,1719354644666,-500.0,0.00019452,2]
[330413491,1719354644675,-500.0,0.00019452,2]
[330413492,1719354644683,-500.0,0.00019452,2]
[330413493,1719354644695,-1555.63,0.00019452,2]
[330413494,1719354644705,-500.0,0.00019452,2]
[330413495,1719354644714,-582.45,0.00019452,2]
[330413496,1719354644723,-500.0,0.00019452,2]
[330413497,1719354644732,-500.0,0.00019452,2]
[330413498,1719354644741,-1062.82,0.00019452,2]
[330413499,1719354644755,-854.87,0.00019452,2]
[330413500,1719354644764,-500.0,0.00019452,2]
[330413501,1719354644774,-500.0,0.00019452,2]
[330413502,1719354644784,-1226.1,0.00019452,2]
[330413503,1719354644793,-500.0,0.00019452,2]
[330413504,1719354644802,-1938.66,0.00019452,2]
[330413505,1719354644811,-681.79,0.00019452,2]
[330413506,1719354644820,-500.0,0.00019452,2]
[330413507,1719354644829,-2414.37,0.00019452,2]
[330413508,1719354644839,-500.0,0.00019452,2]
[330413509,1719354644849,-783.11,0.00019452,2]
[330413510,1719354644858,-500.0,0.00019452,2]
[330413511,1719354644868,-685.1,0.00019452,2]
[330413512,1719354644877,-655.91,0.00019452,2]
[330413513,1719354644886,-500.0,0.00019452,2]
[330413514,1719354644895,-500.0,0.00019452,2]
[330413515,1719354644904,-2778.42,0.00019452,2]
[330413516,1719354644913,-500.0,0.00019452,2]
[330413517,1719354644922,-718.87,0.00019452,2]
[330413518,1719354644931,-8368.22,0.00019452,2]
[330413519,1719354644940,-1295.71,0.00019452,2]
[330413520,1719354644949,-500.0,0.00019452,2]
[330413521,1719354644959,-1344.28,0.00019452,2]
[330413522,1719354644968,-1469.55,0.00019452,2]
[330413523,1719354644977,-1903.75,0.00019452,2]
[330413524,1719354644986,-500.0,0.00019452,2]
[330413525,1719354644995,-565.32,0.00019452,2]
[330413526,1719354645007,-801.18,0.00019452,2]
[330413527,1719354645016,-767.57,0.00019452,2]
[330413528,1719354645026,-294.40717044,0.00019452,2]
[330413529,1719354645035,-692.54,0.00019452,2]
[330413530,1719354645045,-500.0,0.00019452,2]
[330413531,1719354645054,-789.29,0.00019452,2]
[330413532,1719354645063,-3004.9,0.00019452,2]
[330413533,1719354645072,-500.0,0.00019452,2]
[330413534,1719354645082,-500.0,0.00019452,2]
[330413535,1719354645091,-500.0,0.00019452,2]
[330413536,1719354645101,-781.95,0.00019452,2]
[330413537,1719354645110,-500.0,0.00019452,2]
[330413538,1719354645119,-500.0,0.00019452,2]
[330413539,1719354645129,-500.0,0.00019452,2]
[330413540,1719354645138,-471.27274016,0.00019452,2]
[330413541,1719354645147,-545.5,0.00019452,2]
[330413542,1719354645157,-500.0,0.00019452,2]
[330413543,1719354645166,-500.0,0.00019452,2]
[330413544,1719354645175,-500.0,0.00019452,2]
[330413545,1719354645185,-3752.71,0.00019452,2]
[330413546,1719354645194,-574.07,0.00019452,2]
[330413547,1719354645204,-500.0,0.00019452,2]
[330413548,1719354645213,-500.0,0.00019452,2]
[330413549,1719354645222,-500.0,0.00019452,2]
[330413550,1719354645232,-500.0,0.00019452,2]
[330413551,1719354645241,-500.0,0.00019452,2]
[330413552,1719354645250,-1327.1,0.00019452,2]
[330413553,1719354645262,-500.0,0.00019452,2]
[330413554,1719354645271,-513.09,0.00019452,2]
[330413555,1719354645280,-514.51,0.00019452,2]
[330413556,1719354645289,-781.46,0.00019452,2]
[330413557,1719354645298,-3696.6,0.00019452,2]
[330413558,1719354645307,-370.61287926,0.00019452,2]
[330413559,1719354645317,-773.39,0.00019452,2]
[330413560,1719354645327,-500.0,0.00019452,2]
[330413561,1719354645336,-500.0,0.00019452,2]
[330413562,1719354645345,-1290.98,0.00019452,2]
[330413563,1719354645355,-500.0,0.00019452,2]
[330413564,1719354645364,-554.18405369,0.00019452,2]
[330413565,1719354645374,-500.0,0.00019452,2]
[330413566,1719354645383,-500.0,0.00019452,2]
[330413567,1719354645392,-500.0,0.00019452,2]
[330413568,1719354645402,-500.0,0.00019452,2]
[330413569,1719354645411,-1398.23,0.00019452,2]
[330413570,1719354645421,-500.0,0.00019452,2]
[330413571,1719354645430,-500.0,0.00019452,2]
[330413572,1719354645439,-500.0,0.00019452,2]
[330413573,1719354645448,-500.0,0.00019452,2]
[330413574,1719354645458,-500.0,0.00019452,2]
[330413575,1719354645467,-626.89,0.00019452,2]
[330413576,1719354645477,-4070.31,0.00019452,2]
[330413577,1719354645487,-500.0,0.00019452,2]
[330413578,1719354645496,-519.35,0.00019452,2]
[330413579,1719354645508,-500.0,0.00019452,2]
[330413580,1719354645517,-539.58,0.00019452,2]
[330413581,1719354645528,-500.0,0.00019452,2]
[330413582,1719354645542,-500.0,0.00019452,2]
[330413583,1719354645551,-353.00543066,0.00019452,2]
[330413584,1719354645561,-500.0,0.00019452,2]
[330413585,1719354645571,-500.0,0.00019452,2]
[330413586,1719354645579,-835.25,0.00019452,2]
[330413587,1719354645589,-558.29,0.00019452,2]
[330413588,1719354645598,-521.42,0.00019452,2]
[330413589,1719354645608,-500.0,0.00019452,2]
[330413590,1719354645623,-500.0,0.00019452,2]
[330413591,1719354645632,-545.66,0.00019452,2]
[330413592,1719354645641,-2633.37,0.00019452,2]
[330413593,1719354645652,-500.0,0.00019452,2]
[330413594,1719354645663,-1064.04,0.00019452,2]
[330413595,1719354645673,-500.0,0.00019452,2]
[330413596,1719354645682,-798.24,0.00019452,2]
[330413597,1719354645693,-500.0,0.00019452,2]
[330413598,1719354645703,-602.49,0.00019452,2]
[330413599,1719354645714,-871.64,0.00019452,2]
[330413600,1719354645723,-1017.89,0.00019452,2]
[330413601,1719354645733,-500.0,0.00019452,2]
[330413602,1719354645743,-500.0,0.00019452,2]
[330413603,1719354645756,-1083.65,0.00019452,2]
[330413604,1719354645765,-500.0,0.00019452,2]
[330413605,1719354645774,-537.35,0.00019452,2]
[330413606,1719354645783,-5005.61,0.00019452,2]
[330413607,1719354645792,-1446.36,0.00019452,2]
[330413608,1719354645802,-15082.58,0.00019452,2]
[330413609,1719354645811,-726.81,0.00019452,2]
[330413610,1719354645821,-1050.23,0.00019452,2]
[330413611,1719354645830,-919.92,0.00019452,2]
[330413612,1719354645839,-500.0,0.00019452,2]
[330413613,1719354645848,-2633.53,0.00019452,2]
[330413614,1719354645858,-500.0,0.00019452,2]
[330413615,1719354645868,-500.0,0.00019452,2]
[330413616,1719354645877,-2602.36,0.00019452,2]
[330413617,1719354645886,-598.56,0.00019452,2]
[330413618,1719354645896,-575.22,0.00019452,2]
[330413619,1719354645906,-924.09,0.00019452,2]
[330413620,1719354645915,-2587.18,0.00019452,2]
[330413621,1719354645924,-500.0,0.00019452,2]
[330413622,1719354645934,-1398.56,0.00019452,2]
[330413623,1719354645943,-500.0,0.00019452,2]
[330413624,1719354645953,-4446.85,0.00019452,2]
[330413625,1719354645961,-500.0,0.00019452,2]
[330413626,1719354645971,-500.0,0.00019452,2]
[330413627,1719354645980,-9215.85,0.00019452,2]
[330413628,1719354645990,-1241.59,0.00019452,2]
[330413629,1719354646000,-500.0,0.00019452,2]
[330413630,1719354646012,-3743.59,0.00019452,2]
[330413631,1719354646022,-855.61,0.00019452,2]
[330413632,1719354646031,-500.0,0.00019452,2]
[330413633,1719354646040,-527.79,0.00019452,2]
[330413634,1719354646050,-599.2151019,0.00019452,2]
[330413635,1719354646059,-1702.19,0.00019452,2]
[330413636,1719354646069,-500.0,0.00019452,2]
[330413637,1719354646078,-1814.45,0.00019452,2]
[330413638,1719354646088,-500.0,0.00019452,2]
[330413639,1719354646097,-1158.08,0.00019452,2]
[330413640,1719354646106,-500.0,0.00019452,2]
[330413641,1719354646115,-500.0,0.00019452,2]
[330413642,1719354646125,-728.17,0.00019452,2]
[330413644,1719354646135,-500.0,0.00019452,2]
[330413645,1719354646144,-500.0,0.00019452,2]
[330413647,1719354646154,-691.87,0.00019452,2]
[330413649,1719354646164,-1261.27,0.00019452,2]
[330413651,1719354646173,-864.4,0.00019452,2]
[330413652,1719354646182,-500.0,0.00019452,2]
[330413653,1719354646191,-171.24,0.00019452,2]
[330413654,1719354646202,-1601.29,0.00019452,2]
[330413655,1719354646212,-500.0,0.00019452,2]
[330413656,1719354646222,-500.0,0.00019452,2]
[330413657,1719354646231,-500.0,0.00019452,2]
[330413658,1719354646241,-1508.58,0.00019452,2]
[330413659,1719354646251,-500.0,0.00019452,2]
[330413660,1719354646261,-500.0,0.00019452,2]
[330413661,1719354646271,-500.0,0.00019452,2]
[330413662,1719354646280,-500.0,0.00019452,2]
[330413663,1719354646291,-780.37,0.00019452,2]
[330413664,1719354646302,-500.0,0.00019452,2]
[330413665,1719354646311,-953.63,0.00019452,2]
[330413666,1719354646321,-500.0,0.00019452,2]
[330413667,1719354646331,-658.26,0.00019452,2]
[330413668,1719354646341,-2451.39,0.00019452,2]
[330413669,1719354646350,-748.98,0.00019452,2]
[330413670,1719354646359,-713.37,0.00019452,2]
[330413671,1719354646369,-669.68,0.00019452,2]
[330413672,1719354646378,-1064.9,0.00019452,2]
[330413673,1719354646387,-500.0,0.00019452,2]
[330413674,1719354646396,-630.44,0.00019452,2]
[330413675,1719354646406,-662.75,0.00019452,2]
[330413676,1719354646415,-771.52,0.00019452,2]
[330413677,1719354646425,-568.07,0.00019452,2]
[330413678,1719354646434,-1138.09,0.00019452,2]
[330413679,1719354646444,-3996.45,0.00019452,2]
[330413680,1719354646453,-564.29,0.00019452,2]
[330413681,1719354646463,-633.14,0.00019452,2]
[330413682,1719354646474,-812.34,0.00019452,2]
[330413683,1719354646483,-730.97,0.00019452,2]
[330413684,1719354646493,-332.38403903,0.00019452,2]
[330413685,1719354646504,-912.88,0.00019452,2]
[330413686,1719354646513,-1101.26,0.00019452,2]
[330413687,1719354646524,-1471.26,0.00019452,2]
[330413688,1719354646535,-500.0,0.00019452,2]
[330413689,1719354646544,-500.0,0.00019452,2]
[330413690,1719354646554,-14669.95,0.00019452,2]
[330413691,1719354646563,-2186.6,0.00019452,2]
[330413692,1719354646573,-1652.4,0.00019452,2]
[330413693,1719354646582,-612.77,0.00019452,2]
[330413694,1719354646591,-312.70753761,0.00019452,2]
[330413695,1719354646601,-1000.09,0.00019452,2]
[330413696,1719354646612,-736.9,0.00019452,2]
[330413697,1719354646623,-500.0,0.00019452,2]
[330413698,1719354646632,-500.0,0.00019452,2]
[330413699,1719354646642,-707.99,0.00019452,2]
[330413700,1719354646651,-911.87,0.00019452,2]
[330413701,1719354646661,-1857.31,0.00019452,2]
[330413702,1719354646670,-3444.49,0.00019452,2]
[330413703,1719354646679,-500.0,0.00019452,2]
[330413704,1719354646690,-579.9,0.00019452,2]
[330413705,1719354646699,-500.0,0.00019452,2]
[330413706,1719354646708,-826.59,0.00019452,2]
[330413707,1719354646718,-736.4,0.00019452,2]
[330413708,1719354646727,-500.0,0.00019452,2]
[330413709,1719354646736,-500.0,0.00019452,2]
[330413710,1719354646746,-500.0,0.00019452,2]
[330413711,1719354646756,-500.0,0.00019452,2]
[330413712,1719354646765,-618.83,0.00019452,2]
[330413713,1719354646774,-13039.96,0.00019452,2]
[330413714,1719354646783,-500.0,0.00019452,2]
[330413715,1719354646793,-500.0,0.00019452,2]
[330413716,1719354646802,-500.0,0.00019452,2]
[330413717,1719354646812,-1606.99,0.00019452,2]
[330413718,1719354646821,-1108.79,0.00019452,2]
[330413719,1719354646831,-572.03,0.00019452,2]
[330413720,1719354646840,-860.83,0.00019452,2]
[330413721,1719354646850,-668.77,0.00019452,2]
[330413722,1719354646859,-5647.22,0.00019452,2]
[330413723,1719354646868,-3395.45,0.00019452,2]
[330413724,1719354646878,-500.0,0.00019452,2]
[330413725,1719354646887,-5455.17,0.00019452,2]
[330413726,1719354646897,-500.0,0.00019452,2]
[330413727,1719354646906,-1000.0,0.000196,2]
[330413728,1719354646916,-576.0,0.00019626,2]
[330413729,1719354646925,-186.33834045,0.00019626,2]
[330413730,1719354646934,-206.44790114,0.00019626,2]
[330413731,1719354646943,-18894.31192848,0.00019626,2]
[330413732,1719354647373,-2220.31658804,0.00019626,2]
[330413733,1719354647948,-500.0,0.00019178,2]
[330413734,1719354647958,-500.0,0.00019178,2]
[330413735,1719354647968,-5.75997108,0.00019452,2]
[330413736,1719354647984,-494.24002892,0.00019452,2]
[330413737,1719354647995,-500.0,0.00019452,2]
[330413738,1719354648006,-11443.98207508,0.00019626,2]
[330413739,1719354648017,-35736.3529148,0.00019626,2]
[330413740,1719354648029,-7407.42412038,0.00019626,2]
[330413741,1719354648042,-2035.39077322,0.00019626,2]
[330413742,1719354648053,-2007.84615569,0.00019674,2]
[330413743,1719354648317,-962.63936826,0.00018778,2]
[330413744,1719354648504,-185.32413174,0.00018778,2]
[330413745,1719354648520,-3527.71789994,0.00019674,2]
[330413746,1719354648531,-543.23,0.00019726,2]
[330413747,1719354648541,-620.2,0.00019726,2]
[330413748,1719354648551,-695.72,0.00019726,2]
[330413749,1719354648562,-826.34,0.00019726,2]
[330413750,1719354648572,-500.0,0.00019726,2]
[330413751,1719354648582,-500.0,0.00019726,2]
[330413752,1719354648593,-500.0,0.00019726,2]
[330413753,1719354648603,-1690.97,0.00019726,2]
[330413754,1719354648616,-500.0,0.00019726,2]
[330413755,1719354648626,-435.76050585,0.00019726,2]
[330413756,1719354648636,-1136.78,0.00019726,2]
[330413757,1719354648646,-500.0,0.00019726,2]
[330413758,1719354648657,-500.0,0.00019726,2]
[330413759,1719354648668,-500.0,0.00019726,2]
[330413760,1719354648678,-500.0,0.00019726,2]
[330413761,1719354648688,-500.0,0.00019726,2]
[330413762,1719354648701,-4026.69,0.00019726,2]
[330413763,1719354648712,-500.0,0.00019726,2]
[330413764,1719354648723,-500.0,0.00019726,2]
[330413765,1719354648733,-500.0,0.00019726,2]
[330413766,1719354648743,-500.0,0.00019726,2]
[330413767,1719354648757,-500.0,0.00019726,2]
[330413768,1719354648768,-8392.03,0.00019726,2]
[330413769,1719354648779,-500.0,0.00019726,2]
[330413770,1719354648788,-500.0,0.00019726,2]
[330413771,1719354648802,-500.0,0.00019726,2]
[330413772,1719354648812,-500.0,0.00019726,2]
[330413773,1719354648822,-500.0,0.00019726,2]
[330413774,1719354648831,-3919.14,0.00019726,2]
[330413775,1719354648842,-500.0,0.00019726,2]
[330413776,1719354648851,-500.0,0.00019726,2]
[330413777,1719354648861,-500.0,0.00019726,2]
[330413778,1719354648871,-500.0,0.00019726,2]
[330413779,1719354648881,-500.0,0.00019726,2]
[330413780,1719354648892,-500.0,0.00019726,2]
[330413781,1719354648903,-663.49,0.00019726,2]
[330413782,1719354648912,-500.0,0.00019726,2]
[330413783,1719354648922,-500.0,0.00019726,2]
[330413784,1719354648932,-953.17,0.00019726,2]
[330413785,1719354648947,-500.0,0.00019726,2]
[330413786,1719354648957,-500.0,0.00019726,2]
[330413787,1719354648967,-500.0,0.00019726,2]
[330413788,1719354648976,-500.0,0.00019726,2]
[330413789,1719354648986,-500.0,0.00019726,2]
[330413790,1719354648997,-500.0,0.00019726,2]
[330413791,1719354649008,-500.0,0.00019726,2]
[330413792,1719354649017,-500.0,0.00019726,2]
[330413793,1719354649030,-500.0,0.00019726,2]
[330413794,1719354649040,-506.55,0.00019726,2]
[330413795,1719354649049,-500.0,0.00019726,2]
[330413796,1719354649059,-500.0,0.00019726,2]
[330413797,1719354649070,-500.0,0.00019726,2]
[330413798,1719354649080,-500.0,0.00019726,2]
[330413799,1719354649090,-2334.35,0.00019726,2]
[330413800,1719354649100,-500.0,0.00019726,2]
[330413801,1719354649110,-500.0,0.00019726,2]
[330413802,1719354649119,-500.0,0.00019726,2]
[330413803,1719354649129,-500.0,0.00019726,2]
[330413804,1719354649138,-569.72,0.00019726,2]
[330413805,1719354649148,-500.0,0.00019726,2]
[330413806,1719354649158,-714.04,0.00019726,2]
[330413807,1719354649167,-500.0,0.00019726,2]
[330413808,1719354649177,-1168.28,0.00019726,2]
[330413809,1719354649187,-500.0,0.00019726,2]
[330413810,1719354649197,-500.0,0.00019726,2]
[330413811,1719354649206,-7776.46,0.00019726,2]
[330413812,1719354649216,-500.0,0.00019726,2]
[330413813,1719354649226,-500.0,0.00019726,2]
[330413814,1719354649236,-500.0,0.00019726,2]
[330413815,1719354649245,-500.0,0.00019726,2]
[330413816,1719354649255,-500.0,0.00019726,2]
[330413817,1719354649265,-500.0,0.00019726,2]
[330413818,1719354649275,-500.0,0.00019726,2]
[330413819,1719354649286,-500.0,0.00019726,2]
[330413820,1719354649296,-500.0,0.00019726,2]
[330413821,1719354649305,-500.0,0.00019726,2]
[330413822,1719354649315,-500.0,0.00019726,2]
[330413823,1719354649324,-500.0,0.00019726,2]
[330413824,1719354649334,-701.22,0.00019726,2]
[330413825,1719354649344,-500.0,0.00019726,2]
[330413826,1719354649353,-500.0,0.00019726,2]
[330413827,1719354649363,-500.0,0.00019726,2]
[330413828,1719354649373,-500.0,0.00019726,2]
[330413829,1719354649383,-500.0,0.00019726,2]
[330413830,1719354649393,-500.0,0.00019726,2]
[330413831,1719354649403,-851.0,0.00019726,2]
[330413832,1719354649413,-500.0,0.00019726,2]
[330413833,1719354649423,-500.0,0.00019726,2]
[330413834,1719354649433,-502.6,0.00019726,2]
[330413835,1719354649443,-871.96,0.00019726,2]
[330413836,1719354649453,-500.0,0.00019726,2]
[330413837,1719354649463,-500.0,0.00019726,2]
[330413838,1719354649473,-500.0,0.00019726,2]
[330413839,1719354649483,-500.0,0.00019726,2]
[330413840,1719354649492,-1682.11,0.00019726,2]
[330413841,1719354649502,-500.0,0.00019726,2]
[330413842,1719354649513,-500.0,0.00019726,2]
[330413843,1719354649524,-500.0,0.00019726,2]
[330413844,1719354649534,-521.23,0.00019726,2]
[330413845,1719354649543,-500.0,0.00019726,2]
[330413846,1719354649552,-500.0,0.00019726,2]
[330413847,1719354649562,-500.0,0.00019726,2]
[330413848,1719354649572,-385.91187797,0.00019726,2]
[330413849,1719354649582,-500.0,0.00019726,2]
[330413850,1719354649591,-683.33,0.00019726,2]
[330413851,1719354649601,-1049.37,0.00019726,2]
[330413852,1719354649614,-578.98,0.00019726,2]
[330413853,1719354649624,-500.0,0.00019726,2]
[330413854,1719354649633,-500.0,0.00019726,2]
[330413855,1719354649642,-500.0,0.00019726,2]
[330413856,1719354649652,-500.0,0.00019726,2]
[330413857,1719354649662,-500.0,0.00019726,2]
[330413858,1719354649671,-662.04,0.00019726,2]
[330413859,1719354649681,-850.42,0.00019726,2]
[330413860,1719354649692,-500.0,0.00019726,2]
[330413861,1719354649701,-839.43,0.00019726,2]
[330413862,1719354649710,-500.0,0.00019726,2]
[330413863,1719354649719,-669.55,0.00019726,2]